[Event "*** Titled Tuesday Blitz"]
[Site "Chess.com"]
[Date "2020.11.10"]
[Round "4"]
[White "davigator"]
[Black "ChessWarrior3"]
[Result "0-1"]
[WhiteElo "2369"]
[BlackElo "2074"]
[TimeControl "180+1"]
[EndTime "10:39:50 PST"]
[Termination "ChessWarrior3 won by checkmate"]

1. e4 {[%clk 0:03:00.9]} 1... c5 {[%clk 0:02:59.3]} 2. Nf3 {[%clk 0:02:59.5]}
2... d6 {[%clk 0:02:57.2]} 3. d4 {[%clk 0:02:59.5]} 3... cxd4 {[%clk 0:02:58.1]}
4. Nxd4 {[%clk 0:02:59.7]} 4... Nf6 {[%clk 0:02:58.4]} 5. Nc3 {[%clk 0:02:59.8]}
5... a6 {[%clk 0:02:55]} 6. Bg5 {[%clk 0:02:58.8]} 6... e6 {[%clk 0:02:54.6]} 7.
f4 {[%clk 0:02:55.2]} 7... h6 {[%clk 0:02:54.4]} 8. Bh4 {[%clk 0:02:54]} 8...
Qb6 {[%clk 0:02:53.7]} 9. a3 {[%clk 0:02:54.1]} 9... Be7 {[%clk 0:02:50]} 10.
Bf2 {[%clk 0:02:54]} 10... Qc7 {[%clk 0:02:48.9]} 11. Qf3 {[%clk 0:02:53.4]}
11... Nc6 {[%clk 0:02:47.5]} 12. Bd3 {[%clk 0:02:36]} 12... Rb8 {[%clk 0:02:29]}
13. Nb3 {[%clk 0:02:27]} 13... e5 {[%clk 0:02:25.9]} 14. f5 {[%clk 0:02:24.7]}
14... b5 {[%clk 0:02:20.9]} 15. g4 {[%clk 0:02:23.8]} 15... b4 {[%clk
0:02:16.4]} 16. Nd5 {[%clk 0:02:18.2]} 16... bxa3 {[%clk 0:02:10.6]} 17. Nxf6+
{[%clk 0:02:06.2]} 17... Bxf6 {[%clk 0:02:09]} 18. Rxa3 {[%clk 0:02:06.7]} 18...
Nb4 {[%clk 0:02:05.4]} 19. Qe2 {[%clk 0:02:06.7]} 19... Nxd3+ {[%clk 0:02:01.8]}
20. Qxd3 {[%clk 0:02:05.5]} 20... Bd7 {[%clk 0:01:49.3]} 21. c4 {[%clk
0:01:58.6]} 21... g6 {[%clk 0:01:41.1]} 22. Rxa6 {[%clk 0:01:55.3]} 22... Bg5
{[%clk 0:01:28.2]} 23. h4 {[%clk 0:01:40.6]} 23... Bf4 {[%clk 0:01:24.5]} 24.
O-O {[%clk 0:01:38.5]} 24... gxf5 {[%clk 0:01:18.5]} 25. gxf5 {[%clk 0:01:34.9]}
25... Rg8+ {[%clk 0:01:17.5]} 26. Kh1 {[%clk 0:01:34.4]} 26... Bxf5 {[%clk
0:01:15.9]} 27. Ra7 {[%clk 0:01:29.3]} 27... Qc6 {[%clk 0:01:10.9]} 28. Re1
{[%clk 0:01:29.5]} 28... Rxb3 {[%clk 0:01:04.5]} 29. Qd5 {[%clk 0:01:20.5]}
29... Rh3# {[%clk 0:01:02.5]} 0-1

[Event "*** Titled Tuesday Blitz"]
[Site "Chess.com"]
[Date "2020.11.10"]
[Round "4"]
[White "Grineva_Marianna"]
[Black "Siemba"]
[Result "0-1"]
[WhiteElo "2239"]
[BlackElo "2437"]
[TimeControl "180+1"]
[EndTime "10:40:05 PST"]
[Termination "Siemba won by resignation"]

1. e4 {[%clk 0:02:58.9]} 1... f5 {[%clk 0:03:00]} 2. exf5 {[%clk 0:02:56.2]}
2... Nf6 {[%clk 0:03:00.5]} 3. Nc3 {[%clk 0:02:54.2]} 3... d5 {[%clk 0:03:00.4]}
4. d4 {[%clk 0:02:52.2]} 4... Bxf5 {[%clk 0:03:00.6]} 5. Bd3 {[%clk 0:02:48.9]}
5... e6 {[%clk 0:03:00.8]} 6. Nge2 {[%clk 0:02:47.6]} 6... Bd6 {[%clk
0:02:52.3]} 7. Ng3 {[%clk 0:02:43.7]} 7... Bxd3 {[%clk 0:02:49.4]} 8. Qxd3
{[%clk 0:02:44.6]} 8... O-O {[%clk 0:02:49.5]} 9. O-O {[%clk 0:02:41.6]} 9... e5
{[%clk 0:02:47.9]} 10. dxe5 {[%clk 0:02:38.4]} 10... Bxe5 {[%clk 0:02:48.8]} 11.
Re1 {[%clk 0:02:27.7]} 11... Bxg3 {[%clk 0:02:02.5]} 12. hxg3 {[%clk 0:02:11.4]}
12... c6 {[%clk 0:02:02.8]} 13. Bg5 {[%clk 0:02:09.2]} 13... Nbd7 {[%clk
0:01:57.4]} 14. Re2 {[%clk 0:01:53.4]} 14... Qb6 {[%clk 0:01:50.3]} 15. b3
{[%clk 0:01:45.7]} 15... Ng4 {[%clk 0:01:35.8]} 16. Rf1 {[%clk 0:01:43]} 16...
Nde5 {[%clk 0:01:19.7]} 17. Qd2 {[%clk 0:01:38.1]} 17... Rf5 {[%clk 0:01:17.3]}
18. Nd1 {[%clk 0:01:33.7]} 18... Raf8 {[%clk 0:01:07.5]} 19. Bf4 {[%clk
0:01:24.7]} 19... Qd8 {[%clk 0:01:01.2]} 20. Ne3 {[%clk 0:01:20.8]} 20... Rxf4
{[%clk 0:01:01.6]} 21. gxf4 {[%clk 0:01:12.1]} 21... Qh4 {[%clk 0:01:01.4]} 22.
Nxg4 {[%clk 0:01:03.2]} 22... Nxg4 {[%clk 0:01:02.3]} 0-1

[Event "*** Titled Tuesday Blitz"]
[Site "Chess.com"]
[Date "2020.11.10"]
[Round "4"]
[White "louis198"]
[Black "GalperinPlaton"]
[Result "0-1"]
[WhiteElo "2565"]
[BlackElo "2883"]
[TimeControl "180+1"]
[EndTime "10:40:15 PST"]
[Termination "GalperinPlaton won by resignation"]

1. d4 {[%clk 0:02:59.2]} 1... Nf6 {[%clk 0:03:00.9]} 2. c4 {[%clk 0:02:54.7]}
2... e6 {[%clk 0:03:01.4]} 3. Nf3 {[%clk 0:02:54.1]} 3... Nc6 {[%clk 0:03:01.8]}
4. Nc3 {[%clk 0:02:53]} 4... Bb4 {[%clk 0:03:00.9]} 5. Bg5 {[%clk 0:02:46.3]}
5... h6 {[%clk 0:03:00.4]} 6. Bxf6 {[%clk 0:02:45.4]} 6... Qxf6 {[%clk
0:03:01.3]} 7. e3 {[%clk 0:02:45.6]} 7... O-O {[%clk 0:02:58]} 8. Be2 {[%clk
0:02:43.9]} 8... e5 {[%clk 0:02:57.9]} 9. O-O {[%clk 0:02:40.8]} 9... Bxc3
{[%clk 0:02:57.5]} 10. bxc3 {[%clk 0:02:40.8]} 10... d6 {[%clk 0:02:57.8]} 11.
h3 {[%clk 0:02:36.1]} 11... b6 {[%clk 0:02:57.5]} 12. Nd2 {[%clk 0:02:32]} 12...
Bd7 {[%clk 0:02:55.5]} 13. f4 {[%clk 0:02:31.3]} 13... exf4 {[%clk 0:02:54.5]}
14. Rxf4 {[%clk 0:02:31.2]} 14... Qg5 {[%clk 0:02:48.5]} 15. Kh2 {[%clk
0:02:22.9]} 15... Rae8 {[%clk 0:02:45.4]} 16. Nf1 {[%clk 0:02:21]} 16... Rxe3
{[%clk 0:02:41.2]} 17. Rf3 {[%clk 0:02:07.4]} 17... Rxf3 {[%clk 0:02:35.5]} 18.
Bxf3 {[%clk 0:02:07.4]} 18... Re8 {[%clk 0:02:35.7]} 19. c5 {[%clk 0:01:59.8]}
19... bxc5 {[%clk 0:02:32.5]} 20. Rb1 {[%clk 0:01:53.3]} 20... cxd4 {[%clk
0:02:31.3]} 21. cxd4 {[%clk 0:01:48.4]} 21... Qf4+ {[%clk 0:02:31.2]} 22. Kh1
{[%clk 0:01:47.6]} 22... Nxd4 {[%clk 0:02:31.6]} 23. Rb7 {[%clk 0:01:42.8]}
23... Bxh3 {[%clk 0:02:24.3]} 24. Rb4 {[%clk 0:01:36.5]} 24... c5 {[%clk
0:02:08]} 25. Rxd4 {[%clk 0:01:32.4]} 25... Qxd4 {[%clk 0:02:03.6]} 26. Qxd4
{[%clk 0:01:31.9]} 26... cxd4 {[%clk 0:02:04.5]} 27. gxh3 {[%clk 0:01:32.8]}
27... d3 {[%clk 0:02:05]} 28. Kg2 {[%clk 0:01:31.3]} 28... Re2+ {[%clk
0:02:03.2]} 29. Kg3 {[%clk 0:01:27.6]} 29... Rxa2 {[%clk 0:02:03.7]} 30. Ne3
{[%clk 0:01:23.9]} 30... a5 {[%clk 0:02:02.3]} 31. Kf4 {[%clk 0:01:22.5]} 31...
a4 {[%clk 0:02:02.2]} 32. Ke4 {[%clk 0:01:21.9]} 32... Ra3 {[%clk 0:01:56.3]}
33. Nc4 {[%clk 0:01:19.9]} 33... Rc3 {[%clk 0:01:55.6]} 34. Kd4 {[%clk 0:01:19]}
34... Rb3 {[%clk 0:01:36.4]} 35. Bd1 {[%clk 0:01:16.6]} 35... Rb1 {[%clk
0:01:36.4]} 36. Bxa4 {[%clk 0:01:15.8]} 36... d2 {[%clk 0:01:36.9]} 0-1

[Event "*** Titled Tuesday Blitz"]
[Site "Chess.com"]
[Date "2020.11.10"]
[Round "4"]
[White "tsaruk_maks"]
[Black "chito89"]
[Result "0-1"]
[WhiteElo "2619"]
[BlackElo "2853"]
[TimeControl "180+1"]
[EndTime "10:40:17 PST"]
[Termination "chito89 won on time"]

1. e4 {[%clk 0:03:00.9]} 1... c5 {[%clk 0:02:59]} 2. Nf3 {[%clk 0:03:01]} 2...
e6 {[%clk 0:02:58.9]} 3. d4 {[%clk 0:03:01.2]} 3... cxd4 {[%clk 0:02:59.1]} 4.
Nxd4 {[%clk 0:03:02.1]} 4... Nc6 {[%clk 0:02:59.4]} 5. Nc3 {[%clk 0:03:02.1]}
5... Qc7 {[%clk 0:02:58.6]} 6. Be3 {[%clk 0:03:02.4]} 6... a6 {[%clk 0:02:58.6]}
7. a3 {[%clk 0:03:01]} 7... Nf6 {[%clk 0:02:57.3]} 8. f4 {[%clk 0:03:01.4]} 8...
d6 {[%clk 0:02:53.5]} 9. Qf3 {[%clk 0:03:00.1]} 9... Bd7 {[%clk 0:02:53.3]} 10.
O-O-O {[%clk 0:02:57.3]} 10... Rc8 {[%clk 0:02:50.9]} 11. Rg1 {[%clk 0:02:43.8]}
11... Nxd4 {[%clk 0:02:50.1]} 12. Rxd4 {[%clk 0:02:29.9]} 12... b5 {[%clk
0:02:50.3]} 13. g4 {[%clk 0:02:26.3]} 13... Bc6 {[%clk 0:02:43.3]} 14. g5 {[%clk
0:02:25.7]} 14... Nd7 {[%clk 0:02:43.5]} 15. h4 {[%clk 0:02:07.8]} 15... Qb7
{[%clk 0:02:37.3]} 16. Bh3 {[%clk 0:02:03.8]} 16... Nc5 {[%clk 0:02:26.6]} 17.
Rgd1 {[%clk 0:01:42.9]} 17... a5 {[%clk 0:02:22.2]} 18. Kb1 {[%clk 0:00:09.1]}
18... b4 {[%clk 0:02:19.9]} 19. axb4 {[%clk 0:00:09.5]} 19... axb4 {[%clk
0:02:20.8]} 20. Nd5 {[%clk 0:00:10.2]} 20... b3 {[%clk 0:02:16.1]} 21. c4 {[%clk
0:00:10.3]} 21... Qa7 {[%clk 0:02:07.8]} 22. Nc3 {[%clk 0:00:02.5]} 22... Ra8
{[%clk 0:02:07.2]} 23. Kc1 {[%clk 0:00:01.8]} 23... Be7 {[%clk 0:01:57.6]} 24.
Rxd6 {[%clk 0:00:01.5]} 24... Qa1+ {[%clk 0:01:52.9]} 0-1

[Event "*** Titled Tuesday Blitz"]
[Site "Chess.com"]
[Date "2020.11.10"]
[Round "4"]
[White "Unknown_IM"]
[Black "davidkalashian"]
[Result "1-0"]
[WhiteElo "2376"]
[BlackElo "2598"]
[TimeControl "180+1"]
[EndTime "10:40:19 PST"]
[Termination "Unknown_IM won by checkmate"]

1. e4 {[%clk 0:03:00.9]} 1... c5 {[%clk 0:02:57.4]} 2. Nf3 {[%clk 0:03:00.6]}
2... d6 {[%clk 0:02:55.1]} 3. c3 {[%clk 0:02:57.7]} 3... Nf6 {[%clk 0:02:54.4]}
4. Be2 {[%clk 0:02:57.5]} 4... g6 {[%clk 0:02:39.5]} 5. O-O {[%clk 0:02:55.8]}
5... Bg7 {[%clk 0:02:35.4]} 6. Bb5+ {[%clk 0:02:54.4]} 6... Bd7 {[%clk
0:02:30.6]} 7. Bxd7+ {[%clk 0:02:54.2]} 7... Qxd7 {[%clk 0:02:31.2]} 8. Re1
{[%clk 0:02:53.8]} 8... O-O {[%clk 0:02:30.6]} 9. d4 {[%clk 0:02:52.4]} 9...
cxd4 {[%clk 0:02:25.4]} 10. cxd4 {[%clk 0:02:53.3]} 10... d5 {[%clk 0:02:14.9]}
11. e5 {[%clk 0:02:53.1]} 11... Ne4 {[%clk 0:02:12.8]} 12. Nc3 {[%clk
0:02:52.8]} 12... Nxc3 {[%clk 0:02:11.2]} 13. bxc3 {[%clk 0:02:53.7]} 13... Nc6
{[%clk 0:02:10.9]} 14. Ng5 {[%clk 0:02:50.5]} 14... e6 {[%clk 0:02:08.9]} 15. h4
{[%clk 0:02:28.5]} 15... h6 {[%clk 0:01:57.5]} 16. Nh3 {[%clk 0:02:26.5]} 16...
h5 {[%clk 0:01:57.4]} 17. g4 {[%clk 0:02:23.8]} 17... hxg4 {[%clk 0:01:47.5]}
18. Qxg4 {[%clk 0:02:24.7]} 18... Ne7 {[%clk 0:01:47.8]} 19. h5 {[%clk
0:02:20.5]} 19... Qa4 {[%clk 0:01:29.7]} 20. h6 {[%clk 0:02:17.1]} 20... Bh8
{[%clk 0:01:27.2]} 21. h7+ {[%clk 0:01:50.8]} 21... Kg7 {[%clk 0:01:13]} 22. Bg5
{[%clk 0:01:50.4]} 22... Nf5 {[%clk 0:00:19.5]} 23. Bf6+ {[%clk 0:01:47.4]}
23... Kxh7 {[%clk 0:00:18.6]} 24. Ng5+ {[%clk 0:01:47.9]} 24... Kg8 {[%clk
0:00:16.5]} 25. Qh3 {[%clk 0:01:48.3]} 25... Bxf6 {[%clk 0:00:05.8]} 26. Qh7#
{[%clk 0:01:47.7]} 1-0

[Event "*** Titled Tuesday Blitz"]
[Site "Chess.com"]
[Date "2020.11.10"]
[Round "4"]
[White "Kavyev_Ruslan"]
[Black "PawnEatingZombie"]
[Result "1-0"]
[WhiteElo "2396"]
[BlackElo "2167"]
[TimeControl "180+1"]
[EndTime "10:40:21 PST"]
[Termination "Kavyev_Ruslan won by resignation"]

1. d4 {[%clk 0:02:56.7]} 1... d5 {[%clk 0:02:59.5]} 2. c4 {[%clk 0:02:56.4]}
2... e6 {[%clk 0:02:58.6]} 3. Nf3 {[%clk 0:02:56.4]} 3... dxc4 {[%clk
0:02:57.6]} 4. g3 {[%clk 0:02:55.8]} 4... b5 {[%clk 0:02:56.9]} 5. Bg2 {[%clk
0:02:56.7]} 5... Bb7 {[%clk 0:02:57]} 6. O-O {[%clk 0:02:57]} 6... a6 {[%clk
0:02:56.2]} 7. Nc3 {[%clk 0:02:56]} 7... Nf6 {[%clk 0:02:50.2]} 8. a4 {[%clk
0:02:45.2]} 8... c6 {[%clk 0:02:42.4]} 9. Ne5 {[%clk 0:02:44.8]} 9... Qc8 {[%clk
0:02:42.2]} 10. e4 {[%clk 0:02:33.1]} 10... Nbd7 {[%clk 0:02:39.2]} 11. Bg5
{[%clk 0:02:29]} 11... Be7 {[%clk 0:02:36.8]} 12. Nxd7 {[%clk 0:02:28.9]} 12...
Qxd7 {[%clk 0:02:21.6]} 13. e5 {[%clk 0:02:28.4]} 13... Nd5 {[%clk 0:02:20.3]}
14. Bxe7 {[%clk 0:02:29.3]} 14... Kxe7 {[%clk 0:02:08.8]} 15. Ne4 {[%clk
0:02:29.4]} 15... h6 {[%clk 0:01:58]} 16. b3 {[%clk 0:02:27]} 16... c3 {[%clk
0:01:52.8]} 17. Qd3 {[%clk 0:01:58.9]} 17... b4 {[%clk 0:01:50.2]} 18. a5 {[%clk
0:01:58.2]} 18... c5 {[%clk 0:01:34.5]} 19. Nxc5 {[%clk 0:01:57.5]} 19... Qc6
{[%clk 0:01:34.6]} 20. Qc4 {[%clk 0:01:54.6]} 20... Rhc8 {[%clk 0:01:26.7]} 21.
Ra4 {[%clk 0:01:53.8]} 21... Rab8 {[%clk 0:01:15.8]} 22. Rxb4 {[%clk 0:01:53.6]}
22... c2 {[%clk 0:01:02.5]} 23. Rc1 {[%clk 0:01:40.1]} 23... Ne3 {[%clk
0:00:31.7]} 24. Bxc6 {[%clk 0:01:38.2]} 24... Nxc4 {[%clk 0:00:31.6]} 25. Bxb7
{[%clk 0:01:37.5]} 25... Nxa5 {[%clk 0:00:26.6]} 26. Bxc8 {[%clk 0:01:30.3]}
26... Rxb4 {[%clk 0:00:25.4]} 27. Bxa6 {[%clk 0:01:31.2]} 1-0

[Event "*** Titled Tuesday Blitz"]
[Site "Chess.com"]
[Date "2020.11.10"]
[Round "4"]
[White "SHIVACalypso"]
[Black "KacperPolOK"]
[Result "1-0"]
[WhiteElo "2315"]
[BlackElo "2449"]
[TimeControl "180+1"]
[EndTime "10:40:23 PST"]
[Termination "SHIVACalypso won by resignation"]

1. Nf3 {[%clk 0:03:00.9]} 1... e6 {[%clk 0:02:57.6]} 2. c4 {[%clk 0:03:01.3]}
2... f5 {[%clk 0:02:49.9]} 3. g3 {[%clk 0:03:00.7]} 3... Nf6 {[%clk 0:02:49.3]}
4. Bg2 {[%clk 0:03:01.2]} 4... d5 {[%clk 0:02:46.8]} 5. O-O {[%clk 0:02:59.7]}
5... Be7 {[%clk 0:02:38.9]} 6. d3 {[%clk 0:02:59.4]} 6... O-O {[%clk 0:02:37.6]}
7. Nbd2 {[%clk 0:02:56]} 7... c5 {[%clk 0:02:31.9]} 8. e4 {[%clk 0:02:50.8]}
8... d4 {[%clk 0:02:26.5]} 9. e5 {[%clk 0:02:48.5]} 9... Nfd7 {[%clk 0:02:25.8]}
10. Re1 {[%clk 0:02:41.2]} 10... Nc6 {[%clk 0:02:25.2]} 11. Nf1 {[%clk
0:02:40.4]} 11... Qc7 {[%clk 0:02:23.6]} 12. Bf4 {[%clk 0:02:33.2]} 12... b6
{[%clk 0:02:23.7]} 13. a3 {[%clk 0:02:32.4]} 13... Bb7 {[%clk 0:02:23.1]} 14. h4
{[%clk 0:02:32.7]} 14... a6 {[%clk 0:02:20.7]} 15. N1h2 {[%clk 0:02:29.9]} 15...
b5 {[%clk 0:02:18.6]} 16. b3 {[%clk 0:02:28.9]} 16... Rab8 {[%clk 0:02:13.7]}
17. Qd2 {[%clk 0:02:17.5]} 17... bxc4 {[%clk 0:02:06.3]} 18. bxc4 {[%clk
0:02:16.9]} 18... Na5 {[%clk 0:02:06.6]} 19. Rab1 {[%clk 0:02:14.9]} 19... Bc6
{[%clk 0:02:06.7]} 20. Ng5 {[%clk 0:02:04.6]} 20... Bxg2 {[%clk 0:01:59.3]} 21.
Kxg2 {[%clk 0:01:58.2]} 21... Bxg5 {[%clk 0:01:57.7]} 22. Bxg5 {[%clk
0:01:50.6]} 22... Rxb1 {[%clk 0:01:51.2]} 23. Rxb1 {[%clk 0:01:51.5]} 23... Nc6
{[%clk 0:01:51.2]} 24. Nf3 {[%clk 0:01:50.3]} 24... Rb8 {[%clk 0:01:45.1]} 25.
Rxb8+ {[%clk 0:01:48.3]} 25... Qxb8 {[%clk 0:01:44.5]} 26. Qc2 {[%clk
0:01:39.2]} 26... Qb6 {[%clk 0:01:28.4]} 27. Bf4 {[%clk 0:01:33.5]} 27... h6
{[%clk 0:01:27.9]} 28. h5 {[%clk 0:01:27.7]} 28... Kf7 {[%clk 0:01:28.1]} 29.
Qd2 {[%clk 0:01:19.8]} 29... Na5 {[%clk 0:01:25.1]} 30. Bxh6 {[%clk 0:01:18.9]}
30... gxh6 {[%clk 0:01:18.9]} 31. Qxh6 {[%clk 0:01:19.8]} 31... Ke7 {[%clk
0:01:19]} 32. Qg7+ {[%clk 0:01:19.5]} 32... Kd8 {[%clk 0:01:12.2]} 33. h6 {[%clk
0:01:18.8]} 33... Qb3 {[%clk 0:01:03.9]} 34. h7 {[%clk 0:01:14.9]} 34... Qxd3
{[%clk 0:01:03.9]} 35. h8=Q+ {[%clk 0:01:14.7]} 35... Kc7 {[%clk 0:01:04.5]} 36.
Qe8 {[%clk 0:01:11]} 1-0

[Event "*** Titled Tuesday Blitz"]
[Site "Chess.com"]
[Date "2020.11.10"]
[Round "4"]
[White "ChessWarrior7197"]
[Black "Funo09"]
[Result "1-0"]
[WhiteElo "3006"]
[BlackElo "2817"]
[TimeControl "180+1"]
[EndTime "10:40:24 PST"]
[Termination "ChessWarrior7197 won by resignation"]

1. e4 {[%clk 0:03:00.9]} 1... d5 {[%clk 0:02:59.1]} 2. exd5 {[%clk 0:03:00.5]}
2... Qxd5 {[%clk 0:03:00]} 3. Nc3 {[%clk 0:03:00.5]} 3... Qa5 {[%clk 0:03:00.5]}
4. d4 {[%clk 0:02:59.8]} 4... Nf6 {[%clk 0:03:01]} 5. Nf3 {[%clk 0:03:00.4]}
5... Bf5 {[%clk 0:03:00.9]} 6. Bd2 {[%clk 0:02:55.4]} 6... e6 {[%clk 0:02:55.2]}
7. Qe2 {[%clk 0:02:42.5]} 7... Bb4 {[%clk 0:02:50.5]} 8. a3 {[%clk 0:02:40.2]}
8... Nc6 {[%clk 0:02:45.3]} 9. Qb5 {[%clk 0:02:34.5]} 9... O-O-O {[%clk
0:02:38.9]} 10. O-O-O {[%clk 0:02:27.2]} 10... a6 {[%clk 0:02:23.1]} 11. Qc4
{[%clk 0:02:10.9]} 11... Bxc3 {[%clk 0:02:01.2]} 12. Bxc3 {[%clk 0:02:09.7]}
12... Qd5 {[%clk 0:02:01.7]} 13. Qxd5 {[%clk 0:02:02.7]} 13... exd5 {[%clk
0:01:58.7]} 14. Bd3 {[%clk 0:01:54.8]} 14... Bxd3 {[%clk 0:01:55]} 15. Rxd3
{[%clk 0:01:55.7]} 15... Ne4 {[%clk 0:01:55]} 16. Be1 {[%clk 0:01:55.2]} 16...
Rhe8 {[%clk 0:01:53.8]} 17. Kd1 {[%clk 0:01:54]} 17... Re6 {[%clk 0:01:51]} 18.
h4 {[%clk 0:01:54.2]} 18... Rde8 {[%clk 0:01:48.6]} 19. Ng5 {[%clk 0:01:49.9]}
19... Nxg5 {[%clk 0:01:23]} 20. hxg5 {[%clk 0:01:50.8]} 20... Re4 {[%clk
0:01:23.2]} 21. f3 {[%clk 0:01:46.5]} 21... Rxd4 {[%clk 0:01:20.5]} 22. Rxd4
{[%clk 0:01:45.5]} 22... Nxd4 {[%clk 0:01:21]} 23. Rxh7 {[%clk 0:01:43.5]} 23...
Ne6 {[%clk 0:01:21.1]} 24. Bd2 {[%clk 0:01:39.3]} 24... Re7 {[%clk 0:00:45.3]}
25. f4 {[%clk 0:01:39.3]} 25... g6 {[%clk 0:00:43.1]} 26. f5 {[%clk 0:01:39.1]}
26... gxf5 {[%clk 0:00:35.1]} 27. g6 {[%clk 0:01:40]} 27... Kd7 {[%clk
0:00:32.4]} 28. g7 {[%clk 0:01:38.6]} 28... Re8 {[%clk 0:00:32.1]} 29. Bh6
{[%clk 0:01:39.2]} 1-0

[Event "*** Titled Tuesday Blitz"]
[Site "Chess.com"]
[Date "2020.11.10"]
[Round "4"]
[White "MoreChessJulia"]
[Black "BanjoKazooieN64"]
[Result "0-1"]
[WhiteElo "2086"]
[BlackElo "2393"]
[TimeControl "180+1"]
[EndTime "10:40:29 PST"]
[Termination "BanjoKazooieN64 won by checkmate"]

1. d4 {[%clk 0:02:59.2]} 1... Nf6 {[%clk 0:02:59.4]} 2. c4 {[%clk 0:02:58.7]}
2... g6 {[%clk 0:02:59.6]} 3. f3 {[%clk 0:02:57.7]} 3... Bg7 {[%clk 0:02:59.9]}
4. e4 {[%clk 0:02:57.3]} 4... O-O {[%clk 0:03:00.1]} 5. Nc3 {[%clk 0:02:54.2]}
5... d6 {[%clk 0:03:00.5]} 6. Bg5 {[%clk 0:02:53.7]} 6... h6 {[%clk 0:02:58.2]}
7. Be3 {[%clk 0:02:52.7]} 7... e5 {[%clk 0:02:57.6]} 8. d5 {[%clk 0:02:51.8]}
8... Nh5 {[%clk 0:02:57.4]} 9. Qd2 {[%clk 0:02:50.7]} 9... Qh4+ {[%clk
0:02:57.2]} 10. Bf2 {[%clk 0:02:49.4]} 10... Qf4 {[%clk 0:02:57.3]} 11. Be3
{[%clk 0:02:49]} 11... Qh4+ {[%clk 0:02:57.3]} 12. Bf2 {[%clk 0:02:48.7]} 12...
Qe7 {[%clk 0:02:57.5]} 13. Nge2 {[%clk 0:02:43.2]} 13... f5 {[%clk 0:02:57.2]}
14. h3 {[%clk 0:02:38.2]} 14... f4 {[%clk 0:02:54.2]} 15. O-O-O {[%clk
0:02:31.5]} 15... a5 {[%clk 0:02:46.8]} 16. Kb1 {[%clk 0:02:31.1]} 16... Na6
{[%clk 0:02:45.8]} 17. Nc1 {[%clk 0:02:30.3]} 17... b6 {[%clk 0:02:42.5]} 18.
Rg1 {[%clk 0:02:24.3]} 18... Nc5 {[%clk 0:02:39.3]} 19. Nd3 {[%clk 0:02:23]}
19... Ba6 {[%clk 0:02:37.2]} 20. b3 {[%clk 0:02:20.6]} 20... Rab8 {[%clk
0:02:24.1]} 21. Rc1 {[%clk 0:02:06.2]} 21... Qd7 {[%clk 0:02:20.4]} 22. Qc2
{[%clk 0:01:57]} 22... a4 {[%clk 0:02:18.2]} 23. b4 {[%clk 0:01:55.4]} 23...
Bxc4 {[%clk 0:02:10.4]} 24. Nxc5 {[%clk 0:01:52.7]} 24... bxc5 {[%clk
0:02:07.4]} 25. Bxc4 {[%clk 0:01:50.8]} 25... Rxb4+ {[%clk 0:02:07.3]} 26. Ka1
{[%clk 0:01:40.6]} 26... Rxc4 {[%clk 0:02:07.2]} 27. Qd3 {[%clk 0:01:34.8]}
27... Rd4 {[%clk 0:01:57.8]} 28. Bxd4 {[%clk 0:01:33.5]} 28... exd4 {[%clk
0:01:57.9]} 29. Nb1 {[%clk 0:01:22.9]} 29... Rb8 {[%clk 0:01:53.5]} 30. Nd2
{[%clk 0:01:21.7]} 30... Rb4 {[%clk 0:01:30.5]} 31. Rb1 {[%clk 0:01:19.5]} 31...
c4 {[%clk 0:01:30.2]} 32. Nxc4 {[%clk 0:01:14.7]} 32... Rxc4 {[%clk 0:01:30.4]}
33. Qxc4 {[%clk 0:01:14.3]} 33... d3+ {[%clk 0:01:30.6]} 34. Rb2 {[%clk
0:01:14.8]} 34... a3 {[%clk 0:01:28]} 35. Rb1 {[%clk 0:01:07.9]} 35... d2 {[%clk
0:01:18.3]} 36. Qd3 {[%clk 0:01:07.1]} 36... axb2+ {[%clk 0:01:16.3]} 37. Rxb2
{[%clk 0:01:06.8]} 37... Qb5 {[%clk 0:01:07.2]} 38. Qxb5 {[%clk 0:01:05]} 38...
d1=Q# {[%clk 0:01:06.9]} 0-1

[Event "*** Titled Tuesday Blitz"]
[Site "Chess.com"]
[Date "2020.11.10"]
[Round "4"]
[White "Gajuchess"]
[Black "WPWPWP-2015"]
[Result "0-1"]
[WhiteElo "2709"]
[BlackElo "2540"]
[TimeControl "180+1"]
[EndTime "10:40:36 PST"]
[Termination "WPWPWP-2015 won by resignation"]

1. c4 {[%clk 0:03:00.5]} 1... Nf6 {[%clk 0:02:58.3]} 2. Nc3 {[%clk 0:02:58.3]}
2... e5 {[%clk 0:02:55.6]} 3. g3 {[%clk 0:02:58.7]} 3... d5 {[%clk 0:02:55]} 4.
cxd5 {[%clk 0:02:58.4]} 4... Nxd5 {[%clk 0:02:55.9]} 5. Bg2 {[%clk 0:02:59]}
5... Nb6 {[%clk 0:02:56.1]} 6. d3 {[%clk 0:02:57.9]} 6... Be7 {[%clk 0:02:55.8]}
7. Be3 {[%clk 0:02:58.4]} 7... O-O {[%clk 0:02:55.4]} 8. Rc1 {[%clk 0:02:59.1]}
8... Nc6 {[%clk 0:02:48.7]} 9. Bxc6 {[%clk 0:02:59.1]} 9... bxc6 {[%clk
0:02:48.7]} 10. Nf3 {[%clk 0:02:55.9]} 10... Nd5 {[%clk 0:02:32.5]} 11. Nxe5
{[%clk 0:02:32.5]} 11... Nxe3 {[%clk 0:02:26.3]} 12. fxe3 {[%clk 0:02:32.2]}
12... Bg5 {[%clk 0:02:26.2]} 13. Qd2 {[%clk 0:02:24.2]} 13... Re8 {[%clk
0:02:17.9]} 14. d4 {[%clk 0:02:12.2]} 14... f6 {[%clk 0:02:11.7]} 15. Nxc6
{[%clk 0:02:04.3]} 15... Qd7 {[%clk 0:02:11.5]} 16. Nd1 {[%clk 0:02:04.3]} 16...
Bb7 {[%clk 0:02:10.3]} 17. d5 {[%clk 0:01:28]} 17... Qh3 {[%clk 0:02:08.4]} 18.
Kf2 {[%clk 0:01:26.6]} 18... Qf5+ {[%clk 0:01:59.7]} 19. Kg1 {[%clk 0:01:25.3]}
19... Qe4 {[%clk 0:01:47]} 20. Rc3 {[%clk 0:01:05.5]} 20... Rad8 {[%clk
0:01:33]} 21. Nxd8 {[%clk 0:01:03.7]} 21... Bxd5 {[%clk 0:01:32.2]} 22. Qxd5+
{[%clk 0:00:38.8]} 22... Qxd5 {[%clk 0:01:31.8]} 23. Rd3 {[%clk 0:00:39.7]}
23... Qe4 {[%clk 0:01:19.2]} 24. h4 {[%clk 0:00:31.9]} 24... Bh6 {[%clk
0:01:18.7]} 25. Rh2 {[%clk 0:00:28.1]} 25... Qa8 {[%clk 0:01:05.8]} 0-1